bitfinex/quotes_BTCUSD_20250123
["timestamp","ask_amount","ask_price","bid_price","bid_amount"]
[1737659663709,0.98216329,105040.0,105030.0,0.00029162]
[1737659664471,1.00516329,105040.0,105030.0,0.00029162]
[1737659664903,1.03516329,105040.0,105030.0,0.00029162]
[1737659665104,0.138219,105020.0,105010.0,0.0001425]
[1737659665305,0.39222951,105020.0,105010.0,0.00029188]
[1737659665963,0.15666322,105020.0,105010.0,0.00029188]
[1737659666339,0.15666322,105020.0,105010.0,0.00529188]
[1737659667285,0.15766322,105020.0,105010.0,0.01429188]
[1737659667749,0.001,105020.0,105010.0,0.01429188]
[1737659668141,0.00428337,105020.0,105010.0,0.11163917]
[1737659668955,0.39322951,105020.0,105010.0,0.01429188]
[1737659669187,0.4905768,105020.0,105010.0,0.01429188]
[1737659669540,0.7466768,105020.0,105010.0,0.01429188]
[1737659669713,0.48198222,105020.0,105010.0,0.01429188]
[1737659670352,0.67232951,105020.0,105010.0,0.01429188]
[1737659670888,0.70831951,105020.0,105010.0,0.01429188]
[1737659671144,0.70831951,105020.0,104990.0,0.0001427]
[1737659671145,0.27190122,105000.0,104990.0,0.0001427]
[1737659671410,0.15666322,104980.0,104970.0,0.0159243]
[1737659671661,0.15666322,104980.0,104970.0,0.01642236]
[1737659672569,0.25191422,104990.0,104970.0,0.01642236]
[1737659672804,0.001,104980.0,104970.0,0.02242236]
[1737659674248,0.09498467,104990.0,104970.0,0.01642236]
[1737659674529,0.001,104980.0,104970.0,0.02142236]
[1737659674815,0.00170901,104980.0,104970.0,0.11876965]
[1737659675060,0.001,104980.0,104970.0,0.11376965]
[1737659675382,0.002,104980.0,104970.0,0.26876965]
[1737659675557,0.002,104980.0,104970.0,0.36716064]
[1737659675810,0.002,104980.0,104970.0,0.43846064]
[1737659676041,0.002,104980.0,104970.0,0.48846064]
[1737659676272,0.00070901,105020.0,104980.0,0.01929099]
[1737659676494,0.00070901,105020.0,104990.0,0.24734729]
[1737659676947,0.00070901,105010.0,104990.0,0.24734729]
[1737659677738,0.00070901,105010.0,104990.0,0.09734729]
[1737659678259,0.00170901,105010.0,104990.0,0.10434729]
[1737659679756,0.00270901,105010.0,104990.0,0.11334729]
[1737659683368,0.002,105010.0,104990.0,0.11334729]
[1737659684032,0.00229989,105010.0,104990.0,0.11334729]
[1737659684445,0.0030089,105010.0,104990.0,0.11334729]
[1737659684999,0.00229989,105010.0,104990.0,0.11334729]
[1737659685939,0.0030089,105010.0,104990.0,0.11334729]
[1737659686344,0.0030089,105010.0,104990.0,0.14282376]
[1737659686546,0.0030089,105010.0,105000.0,0.15]
[1737659686750,0.0030089,105010.0,105000.0,0.24734729]
[1737659687365,0.0010089,105010.0,105000.0,0.27687086]
[1737659687560,0.0010089,105010.0,105000.0,0.09734729]
[1737659687744,0.0030089,105010.0,105000.0,0.11234729]
[1737659688556,0.0030089,105010.0,105000.0,0.14190276]
[1737659689231,0.00229989,105010.0,105000.0,0.04455547]
[1737659689432,0.00229989,105010.0,105000.0,0.015]
[1737659691394,0.0030089,105010.0,105000.0,0.04463172]
[1737659692175,0.0030089,105010.0,105000.0,0.14197901]
[1737659692707,0.00229989,105010.0,105000.0,0.14197901]
[1737659692916,0.0030089,105010.0,105000.0,0.14197901]
[1737659693129,0.00229989,105010.0,105000.0,0.14197901]
[1737659694027,0.0030089,105010.0,105000.0,0.14197901]
[1737659694502,0.08509989,105010.0,105000.0,0.04463172]
[1737659694651,0.1378437,105010.0,105000.0,0.015]
[1737659695037,0.08509989,105010.0,105000.0,0.015]
[1737659696121,0.38269211,105010.0,105000.0,0.015]
[1737659696307,0.22602889,105010.0,105000.0,0.015]
[1737659696539,0.13079989,105010.0,105000.0,0.015]
[1737659696937,0.22602889,105010.0,105000.0,0.015]
[1737659697452,0.13079989,105010.0,105000.0,0.015]
[1737659697637,0.22602889,105010.0,105000.0,0.015]
[1737659698439,0.13079989,105010.0,105000.0,0.015]
[1737659698737,0.22602889,105010.0,105000.0,0.015]
[1737659698964,0.13079989,105010.0,105000.0,0.015]
[1737659700510,0.14053211,105010.0,105000.0,0.015]
[1737659701558,0.62418181,105010.0,105000.0,0.015]
[1737659701783,0.3221969,105010.0,105000.0,0.015]
[1737659702024,0.14053211,105010.0,105000.0,0.015]
[1737659703003,0.13953211,105010.0,105000.0,0.006]
[1737659703216,0.00070901,105000.0,104980.0,0.15689871]
[1737659703447,0.00070901,105000.0,104990.0,0.09734729]
[1737659703561,0.00070901,105000.0,104990.0,0.12700074]
[1737659704486,0.00170901,105000.0,104990.0,0.12700074]
[1737659704683,0.00170901,105000.0,104990.0,0.28375665]
[1737659704887,0.00070901,105000.0,104990.0,0.28375665]
[1737659705275,0.001,105000.0,104990.0,0.28375665]
[1737659705472,0.001,105000.0,104990.0,0.68930355]
[1737659705729,0.00029989,105010.0,105000.0,0.15]
[1737659705920,0.00029989,105010.0,105000.0,0.28364079]
[1737659707036,0.0010089,105010.0,105000.0,0.12700074]
[1737659707241,0.00129989,105010.0,105000.0,0.03565345]
[1737659707446,0.00129989,105010.0,105000.0,0.006]
[1737659708164,0.00229989,105010.0,105000.0,0.015]
[1737659708392,0.0030089,105010.0,105000.0,0.26908036]
[1737659708596,0.00229989,105010.0,105000.0,0.29875926]
[1737659709667,0.00229989,105010.0,105000.0,0.44875926]
[1737659712034,0.00229989,105010.0,105000.0,0.53415897]
[1737659712863,0.00070901,105030.0,105000.0,0.69089204]
[1737659713060,0.00100869,105060.0,105030.0,0.15]
[1737659713241,0.00100869,105060.0,105050.0,0.15673307]
[1737659713498,0.00100869,105060.0,105050.0,0.28375926]
[1737659713707,0.00100869,105060.0,105050.0,0.25408036]
[1737659714282,0.00115774,105060.0,105050.0,0.28370446]
[1737659714503,0.00044873,105060.0,105050.0,0.43370446]
[1737659714709,0.00044873,105060.0,105050.0,0.44270446]
[1737659716029,0.00044873,105060.0,105050.0,0.43670446]
[1737659716283,0.00044873,105060.0,105050.0,0.44570446]
[1737659716389,0.00044873,105060.0,105050.0,0.44270446]
[1737659717039,0.00044873,105060.0,105050.0,0.41308036]
[1737659717246,0.00044873,105060.0,105050.0,0.41808036]
[1737659717453,0.00044873,105060.0,105050.0,0.40908036]
[1737659717664,0.00044873,105060.0,105050.0,0.41808036]
[1737659718063,0.00044873,105060.0,105050.0,0.44759741]
[1737659718293,0.00044873,105060.0,105050.0,0.44732992]
[1737659719527,0.00044873,105060.0,105050.0,0.41781287]
[1737659720941,0.00115774,105060.0,105050.0,0.41781287]
[1737659722373,0.00044873,105060.0,105050.0,0.41781287]
[1737659724637,0.00044873,105060.0,105050.0,0.43710386]
[1737659724815,0.00044873,105060.0,105050.0,0.50910386]
[1737659725219,0.00070901,105110.0,105070.0,0.01929099]
[1737659725414,0.00070901,105110.0,105100.0,0.15673307]
[1737659725415,0.00014933,105110.0,105100.0,0.15673307]
[1737659725761,0.00014933,105110.0,105100.0,0.25408036]
[1737659725983,0.00014933,105110.0,105100.0,0.40408036]
[1737659726185,0.00014933,105110.0,105100.0,0.56081343]
[1737659726405,0.00014933,105110.0,105100.0,0.60310442]
[1737659726611,0.00014933,105110.0,105100.0,0.44637135]
[1737659726816,0.00014933,105110.0,105100.0,0.60310442]
[1737659727016,0.00014933,105110.0,105100.0,0.44637135]
[1737659727436,0.00014933,105110.0,105100.0,0.45645042]
[1737659727634,0.00014933,105110.0,105100.0,0.44637135]
[1737659727840,0.00014933,105110.0,105100.0,0.47571014]
[1737659728043,0.00029946,105120.0,105110.0,0.30673307]
[1737659728251,0.00029946,105120.0,105110.0,0.40408036]
[1737659729226,0.00029946,105120.0,105110.0,0.41308036]
[1737659729865,0.00029946,105120.0,105110.0,0.41908036]
[1737659732361,0.00029946,105120.0,105110.0,0.26908036]
[1737659734304,0.00100847,105120.0,105110.0,0.11234729]
[1737659734853,0.00100847,105120.0,105110.0,0.26908036]
[1737659735076,0.00100847,105120.0,105110.0,0.17173307]
[1737659735278,0.00100847,105120.0,105110.0,0.015]
[1737659735279,0.13149946,105120.0,105110.0,0.015]
[1737659735741,0.13149946,105120.0,105110.0,0.009]
[1737659735990,0.00070901,105100.0,105090.0,0.30673307]
[1737659736195,0.00070901,105100.0,105090.0,0.25422969]
[1737659737997,0.00070901,105100.0,105090.0,0.26322969]
[1737659738961,0.00070901,105100.0,105090.0,0.26722969]
[1737659739284,0.14096343,105120.0,105090.0,0.11049662]
[1737659739285,0.6330895,105120.0,105090.0,0.11049662]
[1737659739490,0.0816,105100.0,105090.0,0.01314933]
[1737659739699,0.224147,105100.0,105090.0,0.01314933]
[1737659739899,0.129,105100.0,105090.0,0.01314933]
[1737659740319,0.129,105100.0,105090.0,0.00914933]
[1737659740534,0.129,105100.0,105090.0,0.01314933]
[1737659740839,0.129,105100.0,105090.0,0.00414933]
[1737659741307,0.129,105100.0,105090.0,0.01314933]
[1737659741873,0.12970901,105100.0,105090.0,0.00914933]
[1737659742084,0.12970901,105100.0,105090.0,0.1688824]
[1737659742514,0.00070901,105110.0,105090.0,0.26622969]
[1737659742706,0.00070901,105110.0,105100.0,0.15673307]
[1737659742916,0.00070901,105100.0,105090.0,0.10949662]
[1737659743222,0.00070901,105100.0,105090.0,0.26637199]
[1737659743436,0.00070901,105100.0,105090.0,0.26337199]
[1737659743846,0.00070901,105100.0,105090.0,0.25737199]
[1737659744040,0.00070901,105100.0,105090.0,0.26637199]
[1737659744374,0.00070901,105100.0,105090.0,0.25737199]
[1737659744575,0.00070901,105100.0,105090.0,0.26637199]
[1737659745020,0.00070901,105080.0,105070.0,0.00965196]
[1737659745224,0.00070901,105070.0,105040.0,0.16624637]
[1737659745445,0.00070901,105060.0,105050.0,0.09734729]
[1737659746943,0.00070901,105050.0,105030.0,0.08513074]
[1737659747097,0.1225,105050.0,105040.0,0.00014905]
[1737659747304,0.1225,105050.0,105040.0,0.00639092]
[1737659747507,0.217692,105050.0,105040.0,0.00014905]
[1737659747865,0.1225,105050.0,105040.0,0.00014905]
[1737659748511,0.1235,105050.0,105040.0,0.00914905]
[1737659748687,0.1225,105050.0,105040.0,0.00014905]
[1737659749494,0.1225,105050.0,105040.0,0.00214905]
[1737659749634,0.217692,105050.0,105040.0,0.00214905]
[1737659749849,0.217692,105050.0,105040.0,0.01114905]
[1737659750066,0.218692,105050.0,105040.0,0.01114905]
[1737659750901,0.1235,105050.0,105040.0,0.01114905]
[1737659751758,0.28023307,105050.0,105040.0,0.01114905]
[1737659752119,0.28980048,105050.0,105040.0,0.01114905]
[1737659752517,0.13306741,105050.0,105040.0,0.01114905]
[1737659752910,0.28980048,105050.0,105040.0,0.01114905]
[1737659753111,0.38499248,105050.0,105040.0,0.01114905]
[1737659753336,0.13377642,105050.0,105040.0,0.10849634]
[1737659755089,0.13377642,105050.0,105040.0,0.10863864]
[1737659755632,0.32385143,105050.0,105040.0,0.01129135]
[1737659757172,0.13306741,105050.0,105040.0,0.01129135]
[1737659759039,0.01056741,105050.0,105040.0,0.10863864]
[1737659759239,0.001,105050.0,105040.0,0.57210478]
[1737659759589,0.001,105050.0,105040.0,0.41537171]
[1737659759793,0.00170901,105050.0,105040.0,0.10863864]
[1737659760349,0.00070901,105060.0,105040.0,0.25637171]
[1737659760674,0.00170901,105050.0,105040.0,0.26537171]
[1737659760970,0.00170901,105050.0,105040.0,0.25637171]
[1737659761108,0.00270901,105050.0,105040.0,0.26337171]
[1737659761983,0.00270901,105050.0,105040.0,0.26737171]
[1737659762508,0.00270901,105050.0,105040.0,0.26337171]
[1737659762843,0.002,105050.0,105040.0,0.26337171]
[1737659763040,0.002,105050.0,105040.0,0.26637171]
[1737659763419,0.002,105050.0,105040.0,0.10963864]
[1737659763758,0.00270901,105050.0,105040.0,0.10963864]
[1737659764669,0.00270901,105050.0,105040.0,0.01229135]
[1737659764670,0.002,105050.0,105040.0,0.01229135]
[1737659765036,0.20863307,105050.0,105040.0,0.01229135]
[1737659765257,0.29230888,105050.0,105040.0,0.01229135]
[1737659765405,0.13557581,105050.0,105040.0,0.01229135]
[1737659765861,0.0519,105050.0,105040.0,0.01229135]
[1737659766649,0.06141407,105050.0,105040.0,0.01229135]
[1737659766876,0.51333914,105050.0,105040.0,0.01229135]
[1737659767270,0.26141407,105050.0,105040.0,0.01229135]
[1737659768284,0.35660607,105050.0,105040.0,0.01229135]
[1737659768708,0.45395336,105050.0,105040.0,0.01229135]
[1737659769027,0.75103372,105050.0,105040.0,0.01229135]
[1737659769271,0.77627986,105050.0,105040.0,0.01229135]
[1737659769514,0.1255,105020.0,105010.0,0.0001424]
[1737659769766,0.57745207,105020.0,105010.0,0.0001424]
[1737659769997,0.81514665,105020.0,105010.0,0.0001424]
[1737659770266,0.74514665,105020.0,105010.0,1e-08]
[1737659770505,0.419147,104990.0,104980.0,0.0001428]
[1737659770773,0.69322736,104990.0,104980.0,0.0001428]
[1737659771572,0.64622736,104990.0,104980.0,0.0001428]
[1737659771817,0.74357465,104990.0,104980.0,0.0111428]
[1737659772092,0.118256,104980.0,104970.0,0.0160671]
[1737659772321,0.37233636,104980.0,104970.0,0.01621658]
[1737659772518,0.37233636,104980.0,104970.0,0.01320658]
[1737659772726,0.34933636,104980.0,104970.0,0.01320658]
[1737659772943,0.36933636,104980.0,104970.0,0.01320658]
[1737659773144,0.44541226,104980.0,104970.0,0.01320658]
[1737659773349,0.44641226,104980.0,104970.0,0.02220658]
[1737659773560,0.00070901,104910.0,104900.0,0.00020375]
[1737659773765,0.17,104920.0,104900.0,0.00020375]
[1737659773976,0.00070901,104910.0,104900.0,0.00020375]
[1737659774180,0.00070901,104910.0,104900.0,0.25428411]
[1737659774826,0.00070901,104910.0,104900.0,0.25443216]
[1737659775036,0.1954,104930.0,104900.0,0.25943216]
[1737659775037,0.00070901,104920.0,104900.0,0.25943216]
[1737659775241,0.00070901,104910.0,104900.0,0.10269909]
[1737659775445,0.00070901,104910.0,104900.0,0.25443216]
[1737659775697,0.00070901,104910.0,104900.0,0.25843216]
[1737659776092,0.00170901,104920.0,104900.0,0.25843216]
[1737659776302,0.00070901,104920.0,104900.0,0.25843216]
[1737659776528,0.00170901,104910.0,104900.0,0.25843216]
[1737659777085,0.00170901,104910.0,104900.0,0.25443216]
[1737659777287,0.00170901,104910.0,104900.0,0.10169909]
[1737659778104,0.00170901,104910.0,104900.0,0.09769909]
[1737659778950,0.00170901,104910.0,104900.0,0.10169909]
[1737659779201,0.00070901,104910.0,104900.0,0.10169909]
[1737659779708,0.00170901,104910.0,104900.0,0.10169909]
[1737659780107,0.00070901,104910.0,104900.0,0.10169909]
[1737659780306,0.00170901,104910.0,104900.0,0.09769909]
[1737659780532,0.00170901,104910.0,104900.0,0.10069909]
[1737659781878,0.001,104910.0,104900.0,0.25743216]
[1737659782470,0.001,104910.0,104900.0,0.10069909]
[1737659782897,0.00170901,104910.0,104900.0,0.10069909]
[1737659783102,0.15673307,104920.0,104900.0,0.0033518]
[1737659783470,0.25305207,104910.0,104900.0,0.0003518]
[1737659783657,0.30773307,104910.0,104900.0,0.0003518]
[1737659783862,0.35673307,104910.0,104900.0,0.0003518]
[1737659784007,0.45305207,104910.0,104900.0,0.0003518]
[1737659784203,0.45305207,104910.0,104900.0,0.0053518]
[1737659784409,0.59714227,104910.0,104900.0,0.0053518]
[1737659784768,0.115337,104890.0,104880.0,0.00020644]
[1737659784906,0.36941736,104890.0,104880.0,0.00020644]
[1737659785109,0.52615043,104890.0,104880.0,0.00020644]
[1737659785293,0.39241736,104890.0,104880.0,0.00020644]
[1737659785524,0.36941736,104890.0,104880.0,0.00020644]
[1737659785727,0.41941736,104890.0,104880.0,0.00020644]
[1737659785925,0.20673307,104900.0,104880.0,0.00020644]
[1737659786121,0.27568199,104910.0,104880.0,0.00020644]
[1737659786371,0.27568199,104910.0,104900.0,0.001]
[1737659786372,0.46002928,104910.0,104900.0,0.001]
[1737659786547,0.00785793,104910.0,104880.0,0.2542868]
[1737659786750,0.00070901,104900.0,104890.0,0.09734729]
[1737659788163,0.15673307,104900.0,104880.0,0.00020644]
[1737659788386,0.38209756,104900.0,104880.0,0.00020644]
[1737659788589,0.15673307,104900.0,104880.0,0.00020644]
[1737659788860,0.00070901,104890.0,104880.0,0.00020644]
[1737659789365,0.15773307,104900.0,104880.0,0.00020644]
[1737659789659,0.00070901,104890.0,104880.0,0.00720644]
[1737659789875,0.15673307,104890.0,104880.0,0.00720644]
[1737659790030,0.5806255,104890.0,104880.0,0.00020644]
[1737659790202,0.5816255,104890.0,104880.0,0.00820644]
[1737659790404,0.6316255,104890.0,104880.0,0.00820644]
[1737659790647,0.5816255,104890.0,104880.0,0.00720644]
[1737659790849,0.78975857,104890.0,104880.0,0.00720644]
[1737659791025,0.82146065,104890.0,104880.0,0.00820644]
[1737659791236,0.92146065,104890.0,104880.0,0.00820644]
[1737659791429,0.88975857,104890.0,104880.0,0.00820644]
[1737659791885,0.80895832,104890.0,104880.0,0.00820644]
[1737659792617,0.80795832,104890.0,104880.0,0.00120644]
[1737659792812,0.80795832,104890.0,104880.0,0.00020644]
[1737659793074,0.80795832,104890.0,104880.0,0.00420644]
[1737659793236,0.80795832,104890.0,104880.0,0.00020644]
[1737659793435,0.095347,104880.0,104870.0,0.01206661]
[1737659793637,0.52616043,104880.0,104870.0,0.01206661]
[1737659794253,0.50616043,104880.0,104870.0,0.01206661]
[1737659794458,0.67916043,104880.0,104870.0,0.01206661]
[1737659794781,0.68016043,104880.0,104870.0,0.01206661]
[1737659795195,0.71186251,104880.0,104870.0,0.01206661]
[1737659795460,0.8182098,104880.0,104870.0,0.01306661]
[1737659796184,0.69786251,104880.0,104870.0,0.01306661]
[1737659796380,0.71786251,104880.0,104870.0,0.01306661]
[1737659796566,0.68616043,104880.0,104870.0,0.01306661]
[1737659796764,0.145365,104860.0,104850.0,6.642e-05]
[1737659796962,0.20673307,104860.0,104850.0,6.642e-05]
[1737659797159,0.15673307,104860.0,104850.0,6.642e-05]
[1737659797511,0.118383,104840.0,104830.0,0.00103172]
[1737659797688,0.30213407,104820.0,104810.0,0.00182388]
[1737659797891,0.54948136,104820.0,104810.0,0.00182388]
[1737659798093,0.49948136,104820.0,104810.0,0.00182388]
[1737659798333,0.56898136,104820.0,104810.0,0.00182388]
[1737659798512,0.36297687,104780.0,104740.0,0.079]
[1737659798740,0.0062438,104770.0,104750.0,0.09734729]
[1737659798853,0.0062438,104760.0,104750.0,0.09734729]
[1737659799055,0.0062438,104770.0,104750.0,0.09734729]
[1737659799299,0.16297687,104770.0,104750.0,0.09734729]
[1737659799516,0.0062438,104770.0,104750.0,0.09734729]
[1737659799905,0.0062438,104760.0,104750.0,0.10134729]
[1737659800111,0.0062438,104760.0,104750.0,0.004]
[1737659800350,0.15761948,104770.0,104750.0,0.004]
[1737659800560,0.0062438,104760.0,104750.0,0.004]
[1737659800981,0.00639242,104770.0,104750.0,0.09734729]
[1737659801184,0.00639242,104770.0,104760.0,0.09734729]
[1737659801357,0.00739242,104770.0,104760.0,0.09734729]
[1737659801616,0.0062438,104760.0,104740.0,0.15]
[1737659801832,0.0062438,104760.0,104740.0,0.09734729]
[1737659802240,0.0072438,104760.0,104740.0,0.09734729]
[1737659802464,0.0062438,104740.0,104730.0,0.07937983]
[1737659802677,0.16371466,104740.0,104730.0,0.09742712]
[1737659802887,0.17384233,104740.0,104730.0,7.983e-05]
[1737659803112,0.26931633,104740.0,104730.0,7.983e-05]
[1737659803330,0.53666362,104740.0,104730.0,7.983e-05]
[1737659803530,0.53666362,104740.0,104710.0,8.251e-05]
[1737659803531,0.145492,104720.0,104710.0,8.251e-05]
[1737659803642,0.40031015,104720.0,104710.0,8.251e-05]
[1737659803854,0.40216544,104720.0,104710.0,8.251e-05]
[1737659804069,0.30295486,104730.0,104710.0,8.251e-05]
[1737659804278,0.70778101,104720.0,104710.0,8.251e-05]
[1737659804634,0.57031015,104720.0,104710.0,8.251e-05]
[1737659804863,0.70792952,104720.0,104710.0,8.251e-05]
[1737659805063,0.45496666,104720.0,104710.0,0.09558351]
[1737659805218,0.6581052,104720.0,104710.0,8.251e-05]
[1737659805418,0.6591052,104720.0,104710.0,8.251e-05]
[1737659805630,0.6591052,104720.0,104710.0,0.09558351]
[1737659805631,0.05114851,104720.0,104710.0,0.09558351]
[1737659805795,0.15761937,104720.0,104710.0,0.09558351]
[1737659805997,0.00739231,104720.0,104710.0,0.09758351]
[1737659806442,0.00639231,104720.0,104710.0,0.09558351]
[1737659806610,0.15761937,104720.0,104710.0,0.09558351]
[1737659806829,0.00014851,104720.0,104710.0,0.09758351]
[1737659807233,0.25496666,104720.0,104710.0,0.09558351]
[1737659807487,0.28746333,104720.0,104710.0,0.09758351]
[1737659807691,0.28846333,104720.0,104710.0,0.09758351]
[1737659808053,0.07,104710.0,104690.0,8.519e-05]
[1737659808260,0.16734729,104710.0,104700.0,0.095509]
[1737659808472,0.54289812,104710.0,104690.0,0.09559819]
[1737659808691,0.22,104710.0,104700.0,0.09551]
[1737659808935,0.31734729,104710.0,104700.0,0.09551]
[1737659809205,0.29734729,104710.0,104700.0,0.09551]
[1737659809465,0.29734729,104710.0,104690.0,0.09559819]
[1737659809466,0.60385229,104710.0,104690.0,0.09559819]
[1737659809674,0.42032815,104700.0,104690.0,8.519e-05]
[1737659810825,0.50032815,104700.0,104690.0,8.519e-05]
[1737659811060,0.50032815,104700.0,104690.0,0.00208519]
[1737659811338,0.75779901,104700.0,104690.0,0.002]
[1737659811828,0.50032815,104700.0,104690.0,0.002]
[1737659811829,0.50132815,104700.0,104690.0,0.002]
[1737659812008,0.59867544,104700.0,104690.0,0.002]
[1737659812236,0.52032815,104700.0,104690.0,0.002]
[1737659812432,0.52932815,104700.0,104690.0,0.002]
[1737659812656,0.10634729,104700.0,104690.0,0.09552]
[1737659812948,0.15634729,104700.0,104690.0,0.09552]
[1737659813152,0.40932815,104700.0,104690.0,0.09552]
[1737659813362,0.0062438,104670.0,104660.0,0.01601217]
[1737659813596,0.09552,104690.0,104660.0,0.01601217]
[1737659813808,0.0062438,104650.0,104640.0,0.00590533]
[1737659813987,0.0062438,104650.0,104630.0,0.20747086]
[1737659814191,0.0062438,104650.0,104630.0,0.30481815]
[1737659814706,0.0062438,104640.0,104630.0,0.30481815]
[1737659815300,0.0062438,104640.0,104630.0,0.051]
[1737659815629,0.00739215,104650.0,104630.0,0.30581815]
[1737659815839,0.00739215,104650.0,104640.0,0.25481815]
[1737659815840,0.00114835,104650.0,104640.0,0.25481815]
[1737659816043,0.00114835,104650.0,104640.0,0.59904521]
[1737659816044,3.5e-07,104650.0,104640.0,0.59904521]
[1737659816245,0.00100035,104650.0,104640.0,0.64904521]
[1737659816448,0.0062438,104690.0,104650.0,0.2137562]
[1737659816681,0.05,104730.0,104680.0,0.15747086]
[1737659816882,0.0062438,104690.0,104680.0,0.25481815]
[1737659817470,0.0062438,104690.0,104670.0,0.23247086]
[1737659817595,0.0062438,104690.0,104680.0,0.15747086]
[1737659817797,0.0062438,104690.0,104670.0,0.32981815]
[1737659818451,0.00044963,104720.0,104680.0,0.25481815]
[1737659818646,0.0062438,104710.0,104700.0,0.15747086]
[1737659818848,0.00669343,104720.0,104700.0,0.25481815]
[1737659819055,0.00044963,104720.0,104710.0,0.25481815]
[1737659819270,0.0062438,104710.0,104700.0,0.15747086]
[1737659819464,0.0062438,104710.0,104690.0,0.15747086]
[1737659819786,0.00044963,104720.0,104700.0,0.15747086]
[1737659819943,0.0062438,104700.0,104690.0,0.25481815]
[1737659820341,0.0062438,104700.0,104680.0,0.15747086]
[1737659820549,0.0062438,104710.0,104690.0,0.25481815]
[1737659820777,0.0062438,104710.0,104700.0,0.15747086]
[1737659820976,0.0062438,104710.0,104700.0,0.25481815]
[1737659821180,0.0062438,104700.0,104690.0,0.16147086]
[1737659821384,0.0062438,104700.0,104690.0,0.25881815]
[1737659821767,0.50032815,104700.0,104690.0,0.013]
[1737659821983,0.59358437,104700.0,104690.0,0.004]
[1737659822206,0.50032815,104700.0,104690.0,0.004]
[1737659822397,0.50032815,104700.0,104650.0,0.15747086]
[1737659822398,0.0062438,104660.0,104650.0,0.15747086]
[1737659822715,0.61585315,104700.0,104650.0,0.15747086]
[1737659822716,0.62493229,104700.0,104650.0,0.15747086]
[1737659822919,0.0062438,104670.0,104660.0,0.15747086]
[1737659823092,0.0062438,104670.0,104650.0,0.15747086]
[1737659823298,0.0062438,104670.0,104660.0,0.15747086]
[1737659823723,0.0062438,104670.0,104660.0,0.15796901]
[1737659824153,0.0062438,104680.0,104660.0,0.2553163]
[1737659824329,0.0062438,104690.0,104670.0,0.25481815]
[1737659824563,0.0132438,104700.0,104680.0,0.15747086]
[1737659824764,0.0132438,104700.0,104690.0,0.15747086]
[1737659825183,0.0062438,104690.0,104670.0,0.15747086]
[1737659825393,0.0062438,104700.0,104680.0,0.25481815]
[1737659825592,0.0062438,104700.0,104690.0,0.15747086]
[1737659825795,0.0062438,104690.0,104680.0,0.16647086]
[1737659825995,0.0062438,104690.0,104680.0,0.25481815]
[1737659826182,0.0072438,104700.0,104670.0,0.15747086]
[1737659826381,0.0072438,104700.0,104680.0,0.25481815]
[1737659826382,0.0062438,104690.0,104680.0,0.25481815]
[1737659827244,0.0082438,104700.0,104680.0,0.25781815]
[1737659827444,0.0062438,104700.0,104680.0,0.25781815]
[1737659827643,0.0062438,104690.0,104680.0,0.25781815]
[1737659827801,0.0072438,104700.0,104690.0,0.007]
[1737659828150,0.0062438,104700.0,104680.0,0.10034729]
[1737659828588,0.05,104690.0,104680.0,0.012]
[1737659828789,0.37660061,104690.0,104680.0,0.003]
[1737659829116,0.0062438,104670.0,104660.0,0.00049815]
[1737659829359,0.37660061,104690.0,104680.0,0.003]
[1737659829692,0.22594729,104690.0,104680.0,0.003]
[1737659829915,0.0062438,104670.0,104660.0,0.00049815]
[1737659830493,0.09734729,104670.0,104660.0,0.00049815]
[1737659830666,0.613576,104690.0,104680.0,0.008]
[1737659830854,0.0062438,104670.0,104660.0,0.00049815]
[1737659831060,0.0062438,104670.0,104660.0,0.09784544]
[1737659831261,0.0062438,104670.0,104660.0,0.2553163]
[1737659831458,0.0072438,104670.0,104660.0,0.2623163]
[1737659831658,0.39741483,104710.0,104660.0,0.3053163]
[1737659831945,0.24734729,104700.0,104660.0,0.3053163]
[1737659832115,0.001,104670.0,104660.0,0.15484544]
[1737659832322,0.001,104670.0,104660.0,0.09784544]
[1737659832497,0.1149407,104720.0,104670.0,0.05]
[1737659832700,0.38386029,104710.0,104670.0,0.25481815]
[1737659832942,0.48199495,104710.0,104660.0,0.00749815]
[1737659833143,0.48199495,104710.0,104660.0,0.10484544]
[1737659833408,0.21285329,104710.0,104670.0,0.15747086]
[1737659833620,0.01740745,104700.0,104670.0,0.15747086]
[1737659833822,0.11475474,104700.0,104670.0,0.15747086]
[1737659834026,0.01740745,104700.0,104670.0,0.30481815]
[1737659834228,0.01740745,104700.0,104670.0,0.30581815]
[1737659834400,0.01740745,104700.0,104670.0,0.30481815]
[1737659834630,0.13475474,104700.0,104670.0,0.15747086]
[1737659834839,0.13475474,104700.0,104670.0,0.26381815]
[1737659834840,0.01840745,104700.0,104670.0,0.26381815]
[1737659834982,0.001,104700.0,104670.0,0.31381815]
[1737659835191,0.001,104700.0,104680.0,0.30481815]
[1737659835605,0.001,104700.0,104680.0,0.09734729]
[1737659836035,0.001,104700.0,104680.0,0.25481815]
[1737659836250,0.001,104700.0,104680.0,0.07965576]
[1737659836602,0.15,104680.0,104670.0,0.003]
[1737659836805,0.02,104670.0,104630.0,0.05]
[1737659837020,0.15747086,104650.0,104630.0,0.07966067]
[1737659837239,0.09734729,104650.0,104630.0,0.07966067]
[1737659837456,0.09734729,104650.0,104630.0,0.05]
[1737659837664,0.19290429,104650.0,104630.0,0.05]
[1737659838024,0.25481815,104650.0,104630.0,0.05]
[1737659838186,0.15747086,104640.0,104630.0,0.05]
[1737659838406,0.53383029,104650.0,104630.0,0.154569]
[1737659838407,0.67230115,104650.0,104630.0,0.154569]
[1737659838629,0.1308,104650.0,104640.0,0.095565]
[1737659838819,0.001,104650.0,104640.0,0.095565]
[1737659839324,0.001,104650.0,104640.0,0.145565]
[1737659839528,0.00149815,104650.0,104640.0,0.145565]
[1737659839793,0.00149815,104650.0,104640.0,0.095565]
[1737659839966,0.00149815,104650.0,104640.0,0.145565]
[1737659839967,0.00049815,104650.0,104640.0,0.145565]
[1737659840144,0.00049815,104650.0,104640.0,0.40038315]
[1737659840341,0.37719401,104690.0,104640.0,0.3345166]
[1737659840545,0.23102671,104690.0,104650.0,0.30481815]
[1737659840768,0.38849757,104690.0,104650.0,0.3345166]
[1737659841164,0.38102671,104690.0,104650.0,0.3345166]
[1737659841373,0.63401757,104690.0,104650.0,0.12704574]
[1737659841574,0.84806657,104690.0,104650.0,0.02969845]
[1737659841793,0.84506657,104690.0,104650.0,0.05]
[1737659841993,0.55849757,104690.0,104650.0,0.07969845]
[1737659842254,0.15747086,104670.0,104650.0,0.02969845]
[1737659842422,0.15747086,104660.0,104640.0,0.053]
[1737659842579,0.25481815,104660.0,104640.0,0.03269845]
[1737659842785,0.09734729,104660.0,104640.0,0.02969845]
[1737659843029,0.54146315,104660.0,104640.0,0.02969845]
[1737659843352,0.436672,104650.0,104640.0,0.0001429]
[1737659843578,0.245557,104650.0,104640.0,0.0001429]
[1737659843775,0.40481815,104650.0,104640.0,0.0061429]